fUST/lending_fUST_20240120
["ID","MTS","AMOUNT","RATE_DAILY","PERIOD"]
[312241783,1705699855047,-500.0,0.00041643,31]
[312241784,1705699855057,-500.0,0.00041643,31]
[312241785,1705699855067,-500.0,0.00041643,31]
[312241786,1705699855076,-500.0,0.00041643,7]
[312241787,1705699855086,-500.0,0.00041643,31]
[312241788,1705699855095,-500.0,0.00041643,31]
[312241789,1705699855106,-500.0,0.00041643,7]
[312241790,1705699855117,-500.0,0.00041643,31]
[312241791,1705699855128,-467.08001177,0.00041643,31]
[312241792,1705699855137,-500.0,0.00041643,31]
[312241793,1705699855147,-500.87491011,0.00041643,31]
[312241794,1705699855157,-1009.39,0.00041643,31]
[312241795,1705699855165,-500.0,0.00041643,31]
[312241796,1705699855174,-500.0,0.00041643,31]
[312241797,1705699855183,-500.0,0.00041643,31]
[312241798,1705699855193,-500.0,0.00041643,31]
[312241799,1705699855202,-500.0,0.00041643,31]
[312241800,1705699855211,-500.0,0.00041643,31]
[312241801,1705699855220,-500.0,0.00041643,31]
[312241802,1705699855230,-500.0,0.00041643,31]
[312241803,1705699855239,-500.0,0.00041643,31]
[312241804,1705699855249,-750.0,0.00041643,14]
[312241805,1705699855259,-500.0,0.00041643,31]
[312241806,1705699855269,-500.0,0.00041643,31]
[312241807,1705699855279,-500.0,0.00041643,31]
[312241808,1705699855288,-868.64,0.00041643,31]
[312241809,1705699855298,-500.0,0.00041643,31]
[312241810,1705699855308,-500.0,0.00041643,31]
[312241811,1705699855318,-500.0,0.00041643,31]
[312241812,1705699855327,-500.0,0.00041643,31]
[312241813,1705699855336,-500.0,0.00041643,31]
[312241814,1705699855345,-1018.44,0.00041643,31]
[312241815,1705699855354,-500.0,0.00041643,31]
[312241816,1705699855363,-500.0,0.00041643,31]
[312241817,1705699855372,-500.0,0.00041643,31]
[312241818,1705699855381,-500.0,0.00041643,31]
[312241819,1705699855392,-500.0,0.00041643,31]
[312241820,1705699855401,-500.0,0.00041643,31]
[312241821,1705699855411,-500.0,0.00041643,31]
[312241822,1705699855421,-5351.81233837,0.00041643,15]
[312241823,1705699855431,-500.0,0.00041643,31]
[312241824,1705699855440,-500.0,0.00041643,31]
[312241825,1705699855449,-512.16,0.00041643,31]
[312241826,1705699855458,-500.0,0.00041643,31]
[312241827,1705699855468,-732.15,0.00041643,31]
[312241828,1705699855477,-500.0,0.00041643,31]
[312241829,1705699855486,-500.0,0.00041643,31]
[312241830,1705699855496,-500.0,0.00041643,31]
[312241831,1705699855505,-500.0,0.00041643,31]
[312241832,1705699855514,-500.0,0.00041643,31]
[312241833,1705699855523,-232.99178309,0.00041643,31]
[312241834,1705699855533,-500.0,0.00041643,31]
[312241835,1705699855542,-500.0,0.00041643,31]
[312241836,1705699855551,-500.0,0.00041643,31]
[312241837,1705699855560,-500.0,0.00041643,31]
[312241838,1705699855569,-500.0,0.00041643,31]
[312241839,1705699855579,-500.0,0.00041643,14]
[312241840,1705699855589,-500.0,0.00041643,31]
[312241841,1705699855598,-500.0,0.00041643,31]
[312241842,1705699855607,-500.0,0.00041643,31]
[312241843,1705699855617,-500.0,0.00041643,31]
[312241844,1705699855626,-500.0,0.00041643,31]
[312241845,1705699855635,-500.0,0.00041643,31]
[312241846,1705699855644,-500.0,0.00041643,31]
[312241847,1705699855653,-500.0,0.00041643,31]
[312241848,1705699855662,-633.642,0.00041643,7]
[312241849,1705699855673,-500.0,0.00041643,31]
[312241850,1705699855682,-500.0,0.00041643,31]
[312241851,1705699855690,-500.0,0.00041643,31]
[312241852,1705699855699,-500.0,0.00041643,31]
[312241853,1705699855709,-500.0,0.00041643,31]
[312241854,1705699855718,-500.0,0.00041643,31]
[312241855,1705699855727,-1000.0,0.00041643,2]
[312241856,1705699855737,-500.0,0.00041643,31]
[312241857,1705699855746,-500.0,0.00041643,31]
[312241858,1705699855755,-500.0,0.00041643,31]
[312241859,1705699855764,-500.0,0.00041643,31]
[312241860,1705699855775,-590.63987571,0.00041643,31]
[312241861,1705699855786,-299.19623308,0.00041643,31]
[312241862,1705699855796,-503.69616097,0.00041643,31]
[312241863,1705699855806,-500.0,0.00041643,31]
[312241864,1705699855815,-500.0,0.00041643,31]
[312241865,1705699855823,-500.0,0.00041643,31]
[312241866,1705699855833,-500.0,0.00041643,31]
[312241867,1705699855842,-1000.0,0.00041643,2]
[312241868,1705699855851,-549.39571407,0.00041643,31]
[312241869,1705699855860,-500.0,0.00041643,31]
[312241870,1705699855869,-212.7852503,0.00041643,31]
[312241871,1705699855878,-500.0,0.00041643,31]
[312241872,1705699855887,-665.95,0.00041643,31]
[312241873,1705699855896,-667.54,0.00041643,31]
[312241874,1705699855906,-521.82498881,0.00041643,31]
[312241875,1705699855916,-593.65,0.00041643,31]
[312241876,1705699855926,-500.0,0.00041643,31]
[312241877,1705699855935,-150.0,0.00041643,31]
[312241878,1705699855944,-500.0,0.00041643,31]
[312241879,1705699855953,-500.0,0.00041643,31]
[312241880,1705699855962,-500.0,0.00041643,31]
[312241881,1705699855971,-500.0,0.00041643,31]
[312241882,1705699855980,-153.1912224,0.00041643,14]
[312241883,1705699855989,-500.0,0.00041643,31]
[312241884,1705699855999,-396.41630454,0.00041643,31]
[312241885,1705699856008,-500.0,0.00041643,31]
[312241886,1705699856018,-500.0,0.00041643,31]
[312241887,1705699856027,-500.0,0.00041643,31]
[312241888,1705699856035,-500.0,0.00041643,31]
[312241889,1705699856044,-650.55,0.00041643,31]
[312241890,1705699856054,-248.604086,0.00041643,31]
[312241891,1705699856063,-500.0,0.00041643,31]
[312241892,1705699856072,-500.0,0.00041643,31]
[312241893,1705699856082,-500.0,0.00041643,31]
[312241894,1705699856091,-781.25,0.00041643,31]
[312241895,1705699856100,-1243.77,0.00041643,31]
[312241896,1705699856109,-500.0,0.00041643,31]
[312241897,1705699856118,-500.0,0.00041643,31]
[312241898,1705699856127,-500.0,0.00041643,31]
[312241899,1705699856136,-177.77154326,0.00041643,31]
[312241900,1705699856145,-500.0,0.00041643,31]
[312241901,1705699856154,-500.0,0.00041643,31]
[312241902,1705699856164,-1643.90858997,0.00041643,15]
[312241903,1705699856174,-500.0,0.00041643,31]
[312241904,1705699856184,-500.0,0.00041643,31]
[312241905,1705699856278,-877.17,0.00041643,31]
[312241906,1705699856288,-500.0,0.00041643,31]
[312241907,1705699856299,-587.51,0.00041643,31]
[312241908,1705699856309,-2426.04,0.00041643,31]
[312241909,1705699856320,-500.0,0.00041643,31]
[312241910,1705699856330,-500.0,0.00041643,31]
[312241911,1705699856341,-500.0,0.00041643,31]
[312241912,1705699856351,-500.0,0.00041643,31]
[312241913,1705699856360,-500.0,0.00041643,31]
[312241914,1705699856369,-500.0,0.00041643,31]
[312241915,1705699856379,-500.0,0.00041643,31]
[312241916,1705699856390,-524.02419582,0.00041643,31]
[312241917,1705699856401,-3410.38,0.00041643,31]
[312241918,1705699856411,-1617.45,0.00041643,31]
[312241919,1705699856422,-500.0,0.00041643,31]
[312241920,1705699856433,-500.0,0.00041643,31]
[312241921,1705699856443,-500.0,0.00041643,31]
[312241922,1705699856454,-544.45,0.00041643,31]
[312241923,1705699856464,-500.0,0.00041643,31]
[312241924,1705699856475,-500.0,0.00041643,31]
[312241925,1705699856485,-500.0,0.00041643,31]
[312241926,1705699856495,-505.79856849,0.00041643,31]
[312241927,1705699856504,-5972.65,0.00041643,31]
[312241928,1705699856513,-1221.49,0.00041643,31]
[312241929,1705699856524,-500.0,0.00041643,31]
[312241930,1705699856533,-500.0,0.00041643,31]
[312241931,1705699856542,-500.0,0.00041643,31]
[312241932,1705699856553,-1604.78,0.00041643,31]
[312241933,1705699856563,-500.0,0.00041643,31]
[312241934,1705699856571,-500.0,0.00041643,31]
[312241935,1705699856581,-501.00583222,0.00041643,31]
[312241936,1705699856590,-10465.17,0.00041643,31]
[312241937,1705699856599,-2520.46,0.00041643,31]
[312241938,1705699856609,-605.51327513,0.00041643,31]
[312241939,1705699856619,-500.0,0.00041643,31]
[312241940,1705699856629,-500.0,0.00041643,31]
[312241941,1705699856639,-500.0,0.00041643,31]
[312241942,1705699856648,-500.0,0.00041643,31]
[312241943,1705699856657,-1837.35,0.00041643,31]
[312241944,1705699856667,-500.0,0.00041643,31]
[312241945,1705699856678,-500.0,0.00041643,31]
[312241946,1705699856687,-500.0,0.00041643,31]
[312241947,1705699856696,-510.24,0.00041643,31]
[312241948,1705699856705,-504.3707256,0.00041643,14]
[312241949,1705699856715,-910.12,0.00041643,31]
[312241950,1705699856724,-500.0,0.00041643,31]
[312241951,1705699856733,-500.0,0.00041643,31]
[312241952,1705699856743,-500.0,0.00041643,31]
[312241953,1705699856752,-500.0,0.00041643,31]
[312241954,1705699856761,-500.0,0.00041643,31]
[312241955,1705699856770,-507.01155118,0.00041643,31]
[312241956,1705699856781,-500.0,0.00041643,31]
[312241957,1705699856790,-500.0,0.00041643,31]
[312241958,1705699856800,-500.0,0.00041643,31]
[312241959,1705699856810,-500.0,0.00041643,31]
[312241960,1705699856819,-500.0,0.00041643,31]
[312241961,1705699856830,-500.0,0.00041643,31]
[312241962,1705699856840,-1567.25,0.00041643,31]
[312241963,1705699856851,-1246.54,0.00041643,31]
[312241964,1705699856862,-500.0,0.00041643,20]
[312241965,1705699856871,-500.0,0.00041643,31]
[312241966,1705699856880,-500.0,0.00041643,31]
[312241967,1705699856889,-1549.67,0.00041643,31]
[312241968,1705699856898,-500.0,0.00041643,31]
[312241969,1705699856908,-7340.51,0.00041643,31]
[312241970,1705699856918,-500.0,0.00041643,31]
[312241971,1705699856928,-540.7180897,0.00041643,31]
[312241972,1705699856937,-625.0,0.00041643,31]
[312241973,1705699856946,-6633.49,0.00041643,31]
[312241974,1705699856956,-500.0,0.00041643,2]
[312241975,1705699856965,-500.0,0.00041643,31]
[312241976,1705699856973,-500.0,0.00041643,31]
[312241977,1705699856982,-668.56,0.00041643,31]
[312241978,1705699856991,-500.0,0.00041643,31]
[312241979,1705699857000,-8354.23,0.00041643,31]
[312241980,1705699857010,-500.0,0.00041643,31]
[312241981,1705699857018,-500.0,0.00041643,31]
[312241982,1705699857027,-500.0,0.00041643,31]
[312241983,1705699857036,-17535.25,0.00041643,31]
[312241984,1705699857046,-1666.75,0.00041643,31]
[312241985,1705699857055,-500.0,0.00041643,31]
[312241986,1705699857066,-902.61,0.00041643,31]
[312241987,1705699857075,-500.0,0.00041643,31]
[312241988,1705699857085,-1792.54,0.00041643,31]
[312241989,1705699857094,-500.0,0.00041643,31]
[312241990,1705699857104,-1030.85,0.00041643,31]
[312241991,1705699857113,-500.0,0.00041643,31]
[312241992,1705699857124,-1011.32,0.00041643,31]
[312241993,1705699857134,-195.7337572,0.00041643,31]
[312241994,1705699857143,-2909.87,0.00041643,31]
[312241995,1705699857153,-500.0,0.00041643,31]
[312241996,1705699857162,-500.0,0.00041643,31]
[312241997,1705699857173,-500.0,0.00041643,31]
[312241998,1705699857183,-500.0,0.00041643,31]
[312241999,1705699857192,-500.0,0.00041643,31]
[312242000,1705699857201,-500.0,0.00041643,31]
[312242001,1705699857212,-500.0,0.00041643,31]
[312242002,1705699857222,-500.0,0.00041643,31]
[312242003,1705699857232,-500.0,0.00041643,31]
[312242004,1705699857244,-1530.34,0.00041643,31]
[312242005,1705699857254,-2230.18,0.00041643,31]
[312242006,1705699857264,-692.13,0.00041643,31]
[312242007,1705699857273,-1637.95,0.00041643,31]
[312242008,1705699857282,-1392.64,0.00041643,31]
[312242009,1705699857292,-2007.5,0.00041643,31]
[312242010,1705699857301,-500.0,0.00041643,31]
[312242011,1705699857310,-500.0,0.00041643,31]
[312242012,1705699857318,-500.0,0.00041643,31]
[312242013,1705699857327,-500.0,0.00041643,31]
[312242014,1705699857337,-3051.98,0.00041643,31]
[312242015,1705699857346,-500.0,0.00041643,31]
[312242016,1705699857355,-500.0,0.00041643,31]
[312242017,1705699857364,-296.75355326,0.00041643,31]
[312242018,1705699857373,-271.81304611,0.00041643,31]
[312242019,1705699857386,-500.0,0.00041643,31]
[312242020,1705699857395,-500.0,0.00041643,31]
[312242021,1705699857404,-439.13477728,0.00041643,31]
[312242022,1705699857413,-500.0,0.00041643,31]
[312242023,1705699857423,-848.45,0.00041643,31]
[312242024,1705699857432,-500.0,0.00041643,31]
[312242025,1705699857441,-756.66,0.00041643,31]
[312242026,1705699857450,-504.67298462,0.00041643,31]
[312242027,1705699857460,-504.17788797,0.00041643,31]
[312242028,1705699857471,-5000.0,0.00041643,15]
[312242029,1705699857481,-500.0,0.00041643,31]
[312242030,1705699857490,-500.0,0.00041643,31]
[312242031,1705699857499,-500.0,0.00041643,31]
[312242032,1705699857509,-500.0,0.00041643,31]
[312242033,1705699857518,-787.98,0.00041643,31]
[312242034,1705699857527,-500.0,0.00041643,31]
[312242035,1705699857536,-500.0,0.00041643,31]
[312242036,1705699857546,-500.0,0.00041643,2]
[312242037,1705699857555,-500.0,0.00041643,31]
[312242038,1705699857565,-34213.03,0.00041643,14]
[312242039,1705699857574,-500.0,0.00041643,31]
[312242040,1705699857583,-500.0,0.00041643,31]
[312242041,1705699857593,-500.0,0.00041643,31]
[312242042,1705699857602,-639.46,0.00041643,31]
[312242043,1705699857612,-1679.05,0.00041643,31]
[312242044,1705699857621,-279.57433192,0.00041643,31]
[312242045,1705699857631,-500.0,0.00041643,2]
[312242046,1705699857640,-500.0,0.00041643,31]
[312242047,1705699857649,-411.419243,0.00041643,7]
[312242048,1705699857658,-411.419243,0.00041643,7]
[312242049,1705699857668,-411.419243,0.00041643,7]
[312242050,1705699857676,-411.419243,0.00041643,7]
[312242051,1705699857685,-151.0,0.00041643,7]
[312242052,1705699857695,-288.0,0.00041643,7]
[312242053,1705699857704,-157.205432,0.00041643,7]
[312242054,1705699857713,-157.205432,0.00041643,7]
[312242055,1705699857723,-151.0,0.00041643,7]
[312242056,1705699857732,-1265.817322,0.00041643,7]
[312242057,1705699857741,-1265.817322,0.00041643,7]
[312242058,1705699857750,-10000.0,0.00041643,7]
[312242059,1705699857759,-10000.0,0.00041643,7]
[312242060,1705699857768,-10000.0,0.00041643,7]
[312242061,1705699857778,-166.861335,0.00041644,2]
[312242062,1705699857788,-176.28133,0.00041644,2]
[312242063,1705699857797,-154.41164271,0.00041667,30]
[312242064,1705699857806,-154.41164271,0.00041678,30]
[312242065,1705699857815,-150.84915085,0.00041691,2]
[312242066,1705699857824,-250.24063936,0.00041691,2]
[312242067,1705699857833,-154.41164271,0.00041759,30]
[312242068,1705699857842,-154.12939898,0.00041779,30]
[312242069,1705699857852,-159.79980507,0.0004178,30]
[312242070,1705699857864,-154.41164271,0.00041799,30]
[312242071,1705699857874,-2000.0,0.00041808,15]
[312242072,1705699857883,-782.0,0.0004188,30]
[312242073,1705699857893,-154.0,0.0004188,30]
[312242074,1705699857902,-782.0,0.0004189,30]
[312242075,1705699857911,-154.0,0.0004189,30]
[312242076,1705699857921,-4000.0,0.000419,5]
[312242077,1705699857930,-4000.0,0.000419,5]
[312242078,1705699857939,-4000.0,0.000419,5]
[312242079,1705699857948,-2054.13348,0.000419,5]
[312242080,1705699857957,-411.419243,0.00041917,7]
[312242081,1705699857967,-411.419243,0.00041917,7]
[312242082,1705699857976,-151.0,0.00041917,7]
[312242083,1705699857985,-157.205432,0.00041917,7]
[312242084,1705699857995,-157.205432,0.00041917,7]
[312242085,1705699858004,-1265.817322,0.00041917,7]
[312242086,1705699858013,-1265.817322,0.00041917,7]
[312242087,1705699858022,-10000.0,0.00041917,7]
[312242088,1705699858032,-10000.0,0.00041917,7]
[312242089,1705699858042,-10000.0,0.00041917,7]
[312242090,1705699858051,-500.0,0.00041917,31]
[312242091,1705699858060,-500.91282911,0.00041917,31]
[312242092,1705699858070,-573.4176817,0.00041917,31]
[312242093,1705699858080,-558.61,0.00041917,31]
[312242094,1705699858175,-500.0,0.00041917,31]
[312242095,1705699858185,-561.80647202,0.00041917,31]
[312242096,1705699858194,-500.0,0.00041917,31]
[312242097,1705699858203,-500.0,0.00041917,7]
[312242098,1705699858212,-257.87931938,0.00041917,31]
[312242099,1705699858222,-500.0,0.00041917,31]
[312242100,1705699858231,-500.0,0.00041917,31]
[312242101,1705699858240,-500.0,0.00041917,31]
[312242102,1705699858249,-500.0,0.00041917,31]
[312242103,1705699858258,-889.95,0.00041917,31]
[312242104,1705699858267,-500.0,0.00041917,31]
[312242105,1705699858276,-500.0,0.00041917,31]
[312242106,1705699858285,-500.0,0.00041917,31]
[312242107,1705699858295,-338.00917559,0.00041917,31]
[312242108,1705699858304,-500.0,0.00041917,31]
[312242109,1705699858313,-500.0,0.00041917,31]
[312242110,1705699858322,-420.10258733,0.00041917,31]
[312242111,1705699858331,-500.0,0.00041917,7]
[312242112,1705699858340,-500.0,0.00041917,31]
[312242113,1705699858349,-500.0,0.00041917,31]
[312242114,1705699858358,-500.0,0.00041917,7]
[312242115,1705699858367,-500.0,0.00041917,31]
[312242116,1705699858377,-500.0,0.00041917,31]
[312242117,1705699858388,-1009.39,0.00041917,31]
[312242118,1705699858398,-500.0,0.00041917,31]
[312242119,1705699858407,-500.0,0.00041917,31]
[312242120,1705699858416,-500.0,0.00041917,31]
[312242121,1705699858425,-500.0,0.00041917,31]
[312242122,1705699858436,-500.0,0.00041917,31]
[312242123,1705699858445,-500.0,0.00041917,31]
[312242124,1705699858455,-501.3256704,0.00041917,31]
[312242125,1705699858465,-500.0,0.00041917,31]
[312242126,1705699858474,-500.0,0.00041917,31]
[312242127,1705699858483,-365.39463391,0.00041917,31]
[312242128,1705699858493,-500.0,0.00041917,31]
[312242129,1705699858503,-868.64,0.00041917,31]
[312242130,1705699858512,-501.18705401,0.00041917,31]
[312242131,1705699858521,-500.0,0.00041917,31]
[312242132,1705699858531,-500.0,0.00041917,31]
[312242133,1705699858540,-500.0,0.00041917,31]
[312242134,1705699858550,-500.0,0.00041917,31]
[312242135,1705699858560,-1018.44,0.00041917,31]
[312242136,1705699858569,-500.0,0.00041917,31]
[312242137,1705699858578,-500.0,0.00041917,31]
[312242138,1705699858587,-265.14928865,0.00041917,31]
[312242139,1705699858596,-500.0,0.00041917,31]
[312242140,1705699858606,-500.0,0.00041917,31]
[312242141,1705699858615,-500.0,0.00041917,31]
[312242142,1705699858624,-500.0,0.00041917,31]
[312242143,1705699858633,-423.61561581,0.00041917,31]
[312242144,1705699858642,-491.67983656,0.00041917,31]
[312242145,1705699858652,-512.16,0.00041917,31]
[312242146,1705699858661,-500.0,0.00041917,31]
[312242147,1705699858671,-732.15,0.00041917,31]
[312242148,1705699858680,-500.0,0.00041917,31]
[312242149,1705699858690,-500.0,0.00041917,31]
[312242150,1705699858699,-500.0,0.00041917,31]
[312242151,1705699858710,-500.0,0.00041917,31]
[312242152,1705699858720,-500.0,0.00041917,31]
[312242153,1705699858731,-500.0,0.00041917,31]
[312242154,1705699858742,-375.78406185,0.00041917,31]
[312242155,1705699858752,-500.0,0.00041917,31]
[312242156,1705699858762,-500.0,0.00041917,31]
[312242157,1705699858772,-500.0,0.00041917,31]
[312242158,1705699858782,-500.0,0.00041917,14]
[312242159,1705699858792,-166.21513945,0.00041917,31]
[312242160,1705699858801,-500.0,0.00041917,31]
[312242161,1705699858810,-500.0,0.00041917,31]
[312242162,1705699858820,-500.0,0.00041917,31]
[312242163,1705699858829,-500.0,0.00041917,31]
[312242164,1705699858838,-500.0,0.00041917,31]
[312242165,1705699858849,-500.0,0.00041917,31]
[312242166,1705699858859,-500.0,0.00041917,31]
[312242167,1705699858869,-500.0,0.00041917,31]
[312242168,1705699858880,-500.0,0.00041917,31]
[312242169,1705699858890,-500.0,0.00041917,31]
[312242170,1705699858900,-500.0,0.00041917,31]
[312242171,1705699858909,-504.00329423,0.00041917,31]
[312242172,1705699858919,-500.0,0.00041917,31]
[312242173,1705699858930,-1000.0,0.00041917,2]
[312242174,1705699858940,-500.0,0.00041917,31]
[312242175,1705699858951,-500.0,0.00041917,31]
[312242176,1705699858962,-500.0,0.00041917,31]
[312242177,1705699858972,-500.0,0.00041917,31]
[312242178,1705699858983,-624.38263946,0.00041917,31]
[312242179,1705699858993,-519.01649096,0.00041917,31]
[312242180,1705699859003,-500.0,0.00041917,31]
[312242181,1705699859012,-500.0,0.00041917,31]
[312242182,1705699859021,-500.0,0.00041917,31]
[312242183,1705699859031,-665.95,0.00041917,31]
[312242184,1705699859040,-667.54,0.00041917,31]
[312242185,1705699859049,-593.65,0.00041917,31]
[312242186,1705699859059,-500.0,0.00041917,31]
[312242187,1705699859070,-150.0,0.00041917,31]
[312242188,1705699859079,-500.0,0.00041917,31]
[312242189,1705699859087,-500.0,0.00041917,31]
[312242190,1705699859096,-500.0,0.00041917,31]
[312242191,1705699859106,-500.0,0.00041917,31]
[312242192,1705699859114,-500.0,0.00041917,31]
[312242193,1705699859124,-209.79330662,0.00041917,31]
[312242194,1705699859134,-500.0,0.00041917,31]
[312242195,1705699859144,-509.24750775,0.00041917,31]
[312242196,1705699859154,-500.0,0.00041917,31]
[312242197,1705699859163,-650.55,0.00041917,31]
[312242198,1705699859174,-330.64105835,0.00041917,31]
[312242199,1705699859184,-500.0,0.00041917,31]
[312242200,1705699859194,-500.87285916,0.00041917,31]
[312242201,1705699859203,-781.25,0.00041917,31]
[312242202,1705699859214,-1243.77,0.00041917,31]
[312242203,1705699859224,-500.0,0.00041917,31]
[312242204,1705699859234,-500.0,0.00041917,31]
[312242205,1705699859244,-500.0,0.00041917,31]
[312242206,1705699859253,-500.0,0.00041917,31]
[312242207,1705699859263,-500.0,0.00041917,31]
[312242208,1705699859273,-500.0,0.00041917,31]
[312242209,1705699859283,-500.0,0.00041917,31]
[312242210,1705699859293,-877.17,0.00041917,31]
[312242211,1705699859304,-500.0,0.00041917,31]
[312242212,1705699859314,-587.51,0.00041917,31]
[312242213,1705699859324,-2426.04,0.00041917,31]
[312242214,1705699859334,-500.0,0.00041917,31]
[312242215,1705699859344,-500.0,0.00041917,31]
[312242216,1705699859355,-500.0,0.00041917,31]
[312242217,1705699859367,-500.0,0.00041917,31]
[312242218,1705699859379,-500.0,0.00041917,31]
[312242219,1705699859391,-500.0,0.00041917,31]
[312242220,1705699859402,-3410.38,0.00041917,31]
[312242221,1705699859411,-1617.45,0.00041917,31]
[312242222,1705699859423,-500.0,0.00041917,31]
[312242223,1705699859432,-500.0,0.00041917,31]
[312242224,1705699859441,-500.0,0.00041917,31]
[312242225,1705699859450,-544.45,0.00041917,31]
[312242226,1705699859460,-500.0,0.00041917,31]
[312242227,1705699859470,-500.0,0.00041917,31]
[312242228,1705699859479,-500.0,0.00041917,31]
[312242229,1705699859488,-5972.65,0.00041917,31]
[312242230,1705699859497,-1221.49,0.00041917,31]
[312242231,1705699859507,-500.0,0.00041917,31]
[312242232,1705699859516,-522.56927261,0.00041917,31]
[312242233,1705699859525,-500.0,0.00041917,31]
[312242234,1705699859534,-1604.78,0.00041917,31]
[312242235,1705699859543,-500.0,0.00041917,31]
[312242236,1705699859553,-500.0,0.00041917,31]
[312242237,1705699859562,-10465.17,0.00041917,31]
[312242238,1705699859572,-2520.46,0.00041917,31]
[312242239,1705699859581,-502.27871451,0.00041917,31]
[312242240,1705699859590,-500.0,0.00041917,31]
[312242241,1705699859600,-500.0,0.00041917,31]
[312242242,1705699859609,-500.0,0.00041917,31]
[312242243,1705699859618,-1837.35,0.00041917,31]
[312242244,1705699859627,-500.0,0.00041917,31]
[312242245,1705699859637,-500.0,0.00041917,31]
[312242246,1705699859646,-500.0,0.00041917,31]
[312242247,1705699859655,-510.24,0.00041917,31]
[312242248,1705699859663,-910.12,0.00041917,31]
[312242249,1705699859673,-500.0,0.00041917,31]
[312242250,1705699859682,-500.0,0.00041917,31]
[312242251,1705699859691,-500.0,0.00041917,31]
[312242252,1705699859701,-500.0,0.00041917,31]
[312242253,1705699859710,-500.0,0.00041917,31]
[312242254,1705699859719,-500.0,0.00041917,31]
[312242255,1705699859729,-500.0,0.00041917,31]
[312242256,1705699859739,-500.0,0.00041917,31]
[312242257,1705699859748,-500.0,0.00041917,31]
[312242258,1705699859757,-500.0,0.00041917,31]
[312242259,1705699859767,-500.0,0.00041917,31]
[312242260,1705699859777,-1567.25,0.00041917,31]
[312242261,1705699859788,-1246.54,0.00041917,31]
[312242262,1705699859797,-500.0,0.00041917,20]
[312242263,1705699859807,-500.0,0.00041917,31]
[312242264,1705699859816,-1549.67,0.00041917,31]
[312242265,1705699859825,-500.0,0.00041917,31]
[312242266,1705699859836,-7340.51,0.00041917,31]
[312242267,1705699859847,-474.41863525,0.00041917,31]
[312242268,1705699859938,-625.0,0.00041917,31]
[312242269,1705699859947,-6633.49,0.00041917,31]
[312242270,1705699859956,-500.0,0.00041917,31]
[312242271,1705699859966,-500.0,0.00041917,2]
[312242272,1705699859975,-500.0,0.00041917,31]
[312242273,1705699859984,-668.56,0.00041917,31]
[312242274,1705699859993,-632.46,0.00041917,31]
[312242275,1705699860002,-8354.23,0.00041917,31]
[312242276,1705699860011,-601.58693995,0.00041917,31]
[312242277,1705699860019,-500.0,0.00041917,31]
[312242278,1705699860028,-17535.25,0.00041917,31]
[312242279,1705699860037,-1666.75,0.00041917,31]
[312242280,1705699860046,-500.0,0.00041917,31]
[312242281,1705699860055,-500.0,0.00041917,31]
[312242282,1705699860064,-902.61,0.00041917,31]